Cogmind - Beta 13 @@@ ROGUE MODE // 2024.06.04 @ 14:46:12 Player: wd Result: Destroyed by H-55 Commando with Gauss Rifle Performance ------------- Evolutions (2) 1000 Regions Visited (3) 600 Robots Destroyed (25) 125 Value Destroyed (722) 722 Prototype IDs (2) 40 Alien Tech Used (0) 0 Bonus (0) 0 TOTAL SCORE: 2487 Bonus ------- None Cogmind --------- Core Integrity 0/550 Matter 200/300 Energy 235/250 System Corruption 0% Temperature Warm (130) Movement Core (250) Ox4 Location -8/Materials Parts ------- > --- POWER (2) -------- (None) > --- PROPULSION (3) --- (None) > --- UTILITY (4) ------ Medium Storage Unit Medium Battery Visual Processing Unit > --- WEAPON (2) ------- Particle Gun > --- INVENTORY (10) --- Aluminum Leg High-capacity Storage Unit Weight Redist. System Terrain Scan Processor Salvage Targeting Computer Advanced Targeting Computer Peak State ------------ > --- POWER ------------ Ion Engine > --- PROPULSION ------- Aluminum Leg Aluminum Leg Titanium Leg > --- UTILITY ---------- Medium Storage Unit Visual Processing Unit Sensor Array Light Armor Plating > --- WEAPON ----------- Spread Laser Shock Bomb Launcher > --- INVENTORY -------- Aluminum Leg High-capacity Storage Unit Medium Battery Weight Redist. System Terrain Scan Processor Salvage Targeting Computer Advanced Targeting Computer Particle Gun Particle Cannon Particle Cannon [Rating: 17] Favorites ----------- Power Ion Engine Engine Ion Engine Propulsion Aluminum Leg Leg Aluminum Leg Utility Medium Storage Unit Device Sensor Array Storage Medium Storage Unit Processor Visual Processing Unit Protection Light Armor Plating Weapon Light Assault Rifle Energy Gun Spread Laser Energy Cannon Light EM Pulse Cannon Ballistic Gun Light Assault Rifle Launcher Shock Bomb Launcher Build | -11 -10 -9 -8 ------- Run | Yrd Mat Mat Mat Slots Evolved 4 | . . 2 2 Power 1 | . . . 1 Propulsion 1 | . . 1 . Utility 2 | . . 1 1 Weapon . | . . . . Parts Attached 38 | 7 12 8 11 Power 4 | 1 3 . . Engine 4 | 1 3 . . Core . | . . . . Reactor . | . . . . Propulsion 8 | 2 2 2 2 Treads . | . . . . Leg 8 | 2 2 2 2 Wheel . | . . . . Hover . | . . . . Flight . | . . . . Utility 8 | 1 2 3 2 Device 1 | . . 1 . Storage 5 | 1 1 2 1 Processor 1 | . 1 . . Hackware . | . . . . Protection 1 | . . . 1 Artifact . | . . . . Weapon 18 | 3 5 3 7 Energy Gun 4 | . . 1 3 Energy Cannon 5 | . 1 2 2 Ballistic Gun 7 | 3 4 . . Ballistic Cannon . | . . . . Launcher 2 | . . . 2 Special Weapon . | . . . . Impact Weapon . | . . . . Slashing Weapon . | . . . . Piercing Weapon . | . . . . Special Melee Weapon . | . . . . Unidentified Prototypes 1 | . . 1 . Parts Lost 12 | . 1 1 10 Power 2 | . 1 . 1 Propulsion 3 | . . . 3 Utility 2 | . . . 2 Weapon 5 | . . 1 4 Highest Loss Streak 10 | . 1 1 10 To Critical Strikes . | . . . . Average Slot Usage (%) 91 | . 92 99 77 Engine 10 | . 12 11 7 Leg 27 | . 27 32 21 Device 5 | . . 11 8 Storage 12 | . 14 11 10 Processor 9 | . 9 11 9 Protection 1 | . . . 4 Energy Gun 3 | . . 1 14 Energy Cannon 10 | . 6 20 1 Ballistic Gun 9 | . 21 . . Naked Turns . | . . . . Heaviest Build 26 | 10 19 24 26 Greatest Support 37 | 20 20 30 37 Greatest Overweight (x) 5 | 1 . 1 5 Average Overweight (x) . | . . . . Largest Inventory Capacity 20 | 8 10 20 10 Average Capacity 9 | 5 9 10 10 Most Carried 10 | 4 10 10 10 Average Carried 7 | 1 6 9 8 Final Capacity 10 | 8 10 10 10 Final Carried 10 | 3 10 9 6 Class Distribution -------------------- 68% | Scavenger-Mutant 31% | Mutant Dominant Class ---------------- Mutant | -10/Materials Scavenger-Mutant | -9/Materials Scavenger-Mutant | -8/Materials Resources | -11 -10 -9 -8 ----------- Run | Yrd Mat Mat Mat Matter Collected 534 | 192 192 56 94 Remotely . | . . . . Salvage Created 1005 | . 236 323 446 Parts 53 | . 19 15 19 Haulers Intercepted 6 | . 2 2 2 Recyclers Shooed 1 | . . . 1 Parts Field Recycled . | . . . . Retrieved Matter . | . . . . Parts Self-Destructed . | . . . . Prevented . | . . . . Kills | -11 -10 -9 -8 ------- Run | Yrd Mat Mat Mat Combat Hostiles Destroyed 15 | . 4 4 7 Guns 9 | . 4 . 5 Cannons 5 | . . 3 2 AOE 1 | . . 1 . Classes Destroyed 6 | . 4 . 2 Hauler 6 | . 2 2 2 Watcher 4 | . 2 1 1 Swarmer 2 | . 2 . . Grunt 11 | . 2 4 5 Duelist 1 | . . . 1 Hunter 1 | . . . 1 Best Kill Streak 4 | . 3 2 4 Combat Bots Only 3 | . 3 2 3 Max Kills in Single Turn 1 | . 1 1 1 Gunslinging . | . . . . Exploded 1 | . . 1 . Melee . | . . . . Uniques/NPCs Destroyed . | . . . . Combat | -11 -10 -9 -8 -------- Run | Yrd Mat Mat Mat Hostile Shots Fired 209 | . 55 11 143 Missed 61 | . 22 3 36 Damage Taken 2157 | . 391 223 1543 Core 729 | . 89 85 555 Absorbed by Shields . | . . . . Regen/Repaired (Parts) 28 | . . 28 . Core Remaining (%) 80 | 100 64 78 . Volleys Fired 69 | . 22 12 35 Largest 2 | . 2 2 2 Hottest 133 | . 80 112 133 Shots Fired 123 | . 44 24 55 Gun 78 | . 38 . 40 Cannon 42 | . 6 24 12 Launcher 3 | . . . 3 Special . | . . . . Kinetic 38 | . 38 . . Thermal 58 | . 6 . 52 Explosive . | . . . . Electromagnetic 27 | . . 24 3 Robot Hit Streak 11 | . 3 8 11 Robot Miss Streak 6 | . 4 2 6 Penetration Max . | . . . . Secondary Targets . | . . . . Shots Hit Robots 75 | . 18 16 41 Core Hits 61 | . 12 8 41 Critical Kills . | . . . . Critical Parts Destroyed . | . . . . Critical Strikes 1 | . . . 1 Burn 1 | . . . 1 Melee Attacks . | . . . . Impact . | . . . . Slashing . | . . . . Piercing . | . . . . Sneak Attacks . | . . . . Combat Hostiles . | . . . . Follow-up Attacks . | . . . . Damage Inflicted 1588 | . 221 556 811 Guns 632 | . 148 . 484 Cannons 608 | . 69 398 141 Explosions 344 | . . 158 186 Melee . | . . . . Ramming 4 | . 4 . . Kinetic 148 | . 148 . . Thermal 738 | . 69 44 625 Explosive 114 | . . 114 . Electromagnetic 584 | . . 398 186 Impact . | . . . . Slashing . | . . . . Piercing . | . . . . Highest Corruption . | . . . . Average Corruption . | . . . . Corruption Purged . | . . . . Corruption Blocked . | . . . . Overload Shots . | . . . . Overflow Damage 61 | . . 60 1 Projectiles 8 | . . 8 . Explosions 53 | . . 52 1 Melee . | . . . . Knockbacks . | . . . . Impact . | . . . . Kinetic . | . . . . Secondary . | . . . . Self-Inflicted Damage 135 | . . 114 21 Shots 3 | . . 1 2 Rammed . | . . . . Targets Rammed 1 | . 1 . . Kicked 1 | . 1 . . Crushed . | . . . . Highest Temperature 512 | . 100 132 512 Average Temperature 132 | . 27 49 189 Received Heat Transfer 822 | . 66 45 711 Effects 13 | . . . 13 Shutdowns 1 | . . . 1 Energy Bleed 2 | . . . 2 Interference 4 | . . . 4 Matter Decay 2 | . . . 2 Short Circuit 1 | . . . 1 Damage (major) 3 | . . . 3 Siege Activations . | . . . . Robots Corrupted . | . . . . Combat Hostiles . | . . . . Parts Fried 4 | . . 1 3 Impact Corruptions . | . . . . Robots Melted . | . . . . Combat Hostiles . | . . . . Parts Melted . | . . . . Heat Transferred 1423 | . 148 50 1225 Parts Sabotaged . | . . . . Parts Stolen . | . . . . Parts Stripped . | . . . . Power Chain Reactions 1 | . . 1 . Alert | -11 -10 -9 -8 ------- Run | Yrd Mat Mat Mat Peak Influence 225 | . 82 150 225 Initial 44 | . . 20 44 Average 57 | . 45 56 96 Maximum Alert Level 1 | . . . 1 Low Security (%) 98 | 100 100 100 92 Level 1 1 | . . . 7 Level 2 . | . . . . Level 3 . | . . . . Level 4 . | . . . . Level 5 . | . . . . High Security . | . . . . Max Security . | . . . . Squads Dispatched 8 | . 1 2 5 Investigation 2 | . . . 2 Extermination . | . . . . Reinforcement 6 | . 1 2 3 Assault . | . . . . Garrison . | . . . . Intercept . | . . . . Searches Triggered . | . . . . Construction Impeded 1 | . . . 1 Haulers Reinforced . | . . . . Active Scanning Responses . | . . . . Cargo Convoy Interrupts . | . . . . Stealth | -11 -10 -9 -8 --------- Run | Yrd Mat Mat Mat Distress Signals 2 | . . . 2 Communications Jammed . | . . . . Distress Signals . | . . . . Times Spotted 36 | . 9 11 16 Peak Tracking Total 7 | . 4 5 7 Tactical Retreats 1 | . . 1 . Traps | -11 -10 -9 -8 ------- Run | Yrd Mat Mat Mat Traps Triggered 2 | . 2 . . Indirectly . | . . . . Trap Hack Attempts . | . . . . Triggered . | . . . . Disarmed . | . . . . Reprogrammed 6 | . . . 6 Reused . | . . . . Traps Extracted . | . . . . Installed . | . . . . Triggered . | . . . . Machines | -11 -10 -9 -8 ---------- Run | Yrd Mat Mat Mat Machines Disabled 5 | . . 3 2 Max in Single Turn 2 | . . 1 2 Machines Repaired . | . . . . Machines Dismantled . | . . . . Machines Sabotaged . | . . . . Overloaded Fab Kills . | . . . . Hacking | -11 -10 -9 -8 --------- Run | Yrd Mat Mat Mat Machines Accessed 7 | . 4 2 1 Terminals 4 | . 3 . 1 Fabricators . | . . . . Repair Stations 1 | . . 1 . Recycling Units 1 | . 1 . . Scanalyzers 1 | . . 1 . Garrison Access . | . . . . Total Hacks 14 | . 6 5 3 Successful 12 | . 4 5 3 Failed 2 | . 2 . . Catastrophic . | . . . . Database Lockouts . | . . . . Manual . | . . . . Terminals 8 | . 5 . 3 Fabricators . | . . . . Repair Stations 2 | . . 2 . Recycling Units 1 | . 1 . . Scanalyzers 3 | . . 3 . Garrison Access . | . . . . Terminal Hacks 6 | . 3 . 3 Record 1 | . . . 1 Alert Level 1 | . 1 . . Locate Traps 3 | . 2 . 1 Reprogram Traps 1 | . . . 1 Fabricator Hacks . | . . . . Repair Station Hacks 2 | . . 2 . Scan Component 1 | . . 1 . Repair 1 | . . 1 . Recycling Unit Hacks 1 | . 1 . . Report Inventory 1 | . 1 . . Scanalyzer 3 | . . 3 . Insert Component 2 | . . 2 . Analyze 1 | . . 1 . Garrison Access Hacks . | . . . . Unauthorized Hacks . | . . . . Terminals . | . . . . Fabricators . | . . . . Repair Stations . | . . . . Recycling Units . | . . . . Scanalyzers . | . . . . Garrison Access . | . . . . Data Cores Recovered . | . . . . Used . | . . . . Hacking Detections 4 | . 1 2 1 Full Trace Events 1 | . . . 1 Feedback Events . | . . . . Feedback Blocked . | . . . . Robot Schematics Acquired . | . . . . Robots Built . | . . . . Authchips . | . . . . Time . | . . . . Total Robot Build Rating . | . . . . Part Schematics Acquired 1 | . . 1 . Parts Built . | . . . . Authchips . | . . . . Time . | . . . . Total Part Build Rating . | . . . . Parts Repaired 1 | . . 1 . Time 26 | . . 26 . Parts Recycled . | . . . . Recycled Matter . | . . . . Retrieved Matter . | . . . . Retrieved Components . | . . . . Parts Scanalyzed 1 | . . 1 . Part Schematics Acquired 1 | . . 1 . Parts Damaged . | . . . . Bothacking | -11 -10 -9 -8 ------------ Run | Yrd Mat Mat Mat Used RIF Installer . | . . . . Robots Hacked . | . . . . Non-combat . | . . . . Combat . | . . . . Robot Hacks Applied . | . . . . Relay Couplers Released . | . . . . Fabnet Peak Effective % . | . . . . Robots Rewired . | . . . . Allies Hacked . | . . . . Hacks Repelled . | . . . . Allies | -11 -10 -9 -8 -------- Run | Yrd Mat Mat Mat Total Allies . | . . . . Largest Group . | . . . . Highest-Rated Group . | . . . . Highest-Rated Ally . | . . . . Total Orders . | . . . . Ally Attacks . | . . . . Total Damage . | . . . . Kills . | . . . . Allies Corrupted . | . . . . Allies Melted . | . . . . Intel | -11 -10 -9 -8 ------- Run | Yrd Mat Mat Mat Robot Analysis Total . | . . . . Derelict Logs Recovered . | . . . . Drone Launches . | . . . . Drone Recoveries . | . . . . Exploration | -11 -10 -9 -8 ------------- Run | Yrd Mat Mat Mat Turns Passed 1651 | 74 709 507 361 Spaces Moved 1081 | 56 502 334 189 Core 28 | 20 . . 8 Treads . | . . . . Legs 1053 | 36 502 334 181 Wheels . | . . . . Hover . | . . . . Flight . | . . . . Fastest Speed 50 | 50 120 120 120 Average Speed 121 | 103 120 120 130 Slowest Speed 300 | 120 120 190 300 Overloaded Moves . | . . . . Propulsion Burnouts . | . . . . Robots Hopped . | . . . . Cave-ins Triggered . | . . . . Exploration Rate (%) 32 | 4 67 40 17 Regions Visited 3 Branch Regions . Pre-discovered Areas . | . . . . Known Exits Taken . | . . . . Unknown Exits Taken 3 | 1 1 1 . Scrap Searched . | . . . . Spaces Dug . | . . . . Terrain Destroyed 19 | . . 19 . Melee . | . . . . Projectile . | . . . . AOE 19 | . . 19 . Terrain Rammed . | . . . . Walls Destroyed . | . . . . Machines Disabled . | . . . . Actions | -11 -10 -9 -8 --------- Run | Yrd Mat Mat Mat Total 1315 | 71 577 419 248 Wait 59 | . 14 45 . Move 1078 | 55 501 333 189 Hop . | . . . . Pick Up 44 | 9 16 11 8 Fast Attach . | . . . . Attach 27 | 6 9 6 6 Detach 8 | . 6 2 . Swap 11 | 1 3 2 5 Drop 18 | . 5 8 5 Fire 69 | . 22 12 35 Melee . | . . . . Ram . | . . . . Kick 1 | . 1 . . Crush . | . . . . Escape Stasis . | . . . . Rewire . | . . . . Trap . | . . . . Miscellaneous . | . . . . Route ------- -11/Scrapyard -10/Materials (discovered 3 exits: *Mat x2 / [*Min]) -9/Materials -8/Materials History --------- Turn | Location | Event 12 | -11/Scrapyard | Discovered new exit (range 15) 75 | -11/Scrapyard | Entered Materials 246 | -10/Materials | Discovered new exit (range 8) 307 | -10/Materials | Build established: Mutant 377 | -10/Materials | Discovered new exit (range 11) 749 | -10/Materials | Discovered new exit (range 15) 753 | -10/Materials | Build established: Scavenger-Mutant 784 | -10/Materials | Entered another Materials area 784 | -9/Materials | Evolved 2 slots: Propulsion x1, Utility x1 830 | -9/Materials | Repaired Aluminum Leg 1123 | -9/Materials | Discovered new exit (range 18) 1291 | -9/Materials | Entered another Materials area 1291 | -8/Materials | Evolved 2 slots: Power x1, Utility x1 1612 | -8/Materials | Core integrity fell below 50% 1639 | -8/Materials | Core integrity fell below 20% 1652 | -8/Materials | Destroyed by H-55 Commando with Gauss Rifle Last Messages --------------- K-01 Serf destroyed. K-01 Serf collects debris. Slug penetrates Wall. Wall collapses. K-01 Serf collects debris. Particle Cannon destroyed. K-01 Serf collects debris. U-05 Engineer builds a Wall. K-01 Serf collects debris. G-47 Trooper suffers critical hit (Burn). G-47 Trooper destroyed. M-28 Smith repairs G-47 Trooper. Sensor Array destroyed. G-47 Trooper destroyed. Penetrated by Slug. G-47 Trooper destroyed. Penetrated by Slug. Slug penetrates Wall. G-47 Trooper destroyed. Penetrated by Slug. Map ----- +----------------------------------------------------+ | ?????????????????????????????????????????????????? | | ?????????????????????????????????????????????????? | | ???????????????????????????? ??????????????????? | | ???????????????????????????? ?????????????????? | | ????????????????????????????? ?????????????????? | | ???????????????????????????? ?????????????????? | | ??????????????????????????#"" ?????????????????? | | ??????????????????????????#"T ?????????????????? | | ???????????????????????????"" ?????????????????? | | ???????????????????????????? ?????????????????? | | ????????????????????#+########+###########+####### | | ????????????????????? ] %^] | | ?????????????????????? *=[^]! %= | | ???????????????????????? %==** %*% =[ | | ???????????????????????????##[^[ = "####/###???? | | ????????????????????????????#%^ [ #??????????? | | ????????????????????????????#% %[ ! T#??????????? | | ????????????????????????????#/ = % "#??????????? | | ????????????????????????????# != = ##??????????? | | ????????????????????????????#= % #???????????? | | ????????????????????????????# ##T###???????????? | | ????????????????????????????# ####?????????????? | | ????????????????????????????# #????????????????? | | ????????###############?????# #????????????????? | | ????????# !! # ####### #????????????????? | | ????????# ! # @ =h! #????????????????? | | ????????# ! # =%= #????????????????? | | ????????# # =*%![ #????????????????? | | ????????# # ###########????????????????? | | ????????###+##+####+########?????????????????????? | | ??????????# # = #?????????????????????? | | ??????????# # #?????????????????????? | | ??????????# # #?????????????????????? | | ??????????# # #?????????????????????? | | ?????######+## # = #?????????????????????? | | ?????# # # #?????????????????????? | | ?????# # # ! #?????????????????????? | | ?????# # ######+######?????????????????????? | | ?????# # #### #????????????????????????? | | ?????# # #????????????????????????? | | ?????# + #????????????????????????? | | ?????# # #????????????????????????? | | ?????# ###+## #????????????????????????? | | ?????# ## ## ##????????????????????????? | | ?????# ##! ## #?????????????????????????? | | ?????# ##! ## #?????????????????????????? | | ?????##########]] ## #?????????????????????????? | | ??????????????# ## #?????????????????????????? | | ??????????????# ## #?????????????????????????? | | ??????????????# ## #?????????????????????????? | +----------------------------------------------------+ Best States ------------- Heat Dissipation 31 Energy Generation 10 Energy Capacity 250 Matter Stores 300 Matter Capacity 300 Sight Range 18 Robot Scan Range 14 Terrain Scan Density 10 Armor Coverage 150 Evasion (%) 55 Item Schematics ----------------- Imp. EM Shotgun | -9/Materials | Scanalyzed Robot Schematics ------------------ None Fabricated ------------ Nothing Alien Tech Used ----------------- None Achievements -------------- None Challenges ------------ None Game ------ Seed HardenedGhostMagmablaster Manual? 0 Play Time 00:28:31 Cumulative 9.4 hours Start 2024.06.04 @ 07:37:11 End 2024.06.04 @ 14:46:12 Sessions 2 Manual Loads 0 Difficulty Rogue Special Mode None Game No. 10 Rogue 10 Adventurer 0 Explorer 0 Win Type - Total 0 Types 0/0/0/0/0/0/0/0/0 Lore% 6 Gallery% 10 Achievement% 13 Wizard Run 0 Options --------- Layout 1 ASCII 0 Keyboard 1 Movement Numpad Keybinds 0 Fullscreen 1 Font 32/SmallcapsGlow Map View 50x35 Zoom Use 0% Tactical HUD 0 Map Filters NONE Filters NONE Steam 1 RUN: 077ce6bb-fd50-4a2d-8f86-6fc2ce9c8d33